{"text_format":"1","workbook":"xlsx","n_sheets":15,"sheets":["Directions","Main","School Set Up","Per Day","Behavior","Location","Time","K-6 By Students ","6-9 By Students","9-12 By Students","K8 or K12 By Students","By Students No Comparison","perday Generator","Print Monthly","Print Cumulative"],"not_rendered":{"charts":41,"images":0,"macros":1,"external_links":0,"defined_names":7,"comments":0,"pivot_tables":0},"unopened":[],"bounds":{"document_bytes":16777216,"sheet_cells":100000,"rows_first":2000,"rows_last":500,"rows_between":2000,"halvings":0,"cell_chars":16384,"cell_head_chars":4096},"cells_cut":0,"cells_raw":0,"read":"whole","date_system":"1900"}

{"sheet":"Directions","index":0,"n_rows":13,"n_cols":1,"rows_kept":13,"cut":false,"hidden":false,"merged":[]}
[]
[]
["Directions for Using the BIG 5 Graphics Generator"]
["This Big 5 Generator has been developed to assist your team to display your data in easy to read graphics, that you can then use to problem solve and develop targeted interventions. To prepare to enter your data, simply tally your ODR's by numbers per month, type of behaviors, location, time of day, and number of referrals per students (count the number with 1 referral, 2-5 referrals, and 6 or more referrals)."]
["Step 1- When entering data for a given month, first open the Big-5 Generator for the previous month, and immediately save it, using the name of the school, and the current month and year in the title. An example is \"Wonderful_Elementary_March_2008.\" By always starting with the previous month, it will save you from having to retype the accumulating data each month."]
["Step 2- Type your school name, the month and school year, as well as the student enrollments for the current year as well as the previous 2 years into the appropriate spaces on the \"School Set Up\" worksheet. This will propogate to title fields on the print worksheets of the Big 5 Generator, saving you this step. CLICK SAVE!!!"]
["Step 3- Collect and enter the required data for the appropriate worksheet:"]
["A) Per Day Worksheet- enter the number of student attendance days for each month and the total number of Office Discipline Referrals (ODRs) or instances where students were removed from academic instruction in order to have the misbehavior discussed and/or consequence given. CLICK SAVE!!!"]
["B) Behavior Worksheet – enter the total number of ODRs for the month according to the inappropriate behavior listed on the ODR. CLICK SAVE!!!"]
["C) Location Worksheet – enter the total number of ODRs for the month by the location where the behavior occurred. CLICK SAVE!!!"]
["D) Time Worksheet – enter the total number of ODRs for the month by the time of day in which the behavior occurred. Record these times to the nearest 15 minute increment to the time listed on the ODR. CLICK SAVE!!!"]
["E) By Student Worksheet – this graphic allows you to compare the number of students that might require more intensive interventions, and compare this to a national data set. Click on the wrksheet tab that best describes the configuration of your school (k-6; 6-9; 9-12; k-8 or k-12). The number enrolled will automatically fill in from when you entered it on the \"School Set Up\" worksheet. If it is incorrect, you must change it from the \"School Set Up\" worksheet. Enter the total number students who have had 1 ODR for the month, the total number of students with 2-5 ODRs for the month, and the total number of students with 6+ ODRs for the month. Be sure to enter your data for the current school year, or the generator will not produce a triangle graph!!! The Big 5 Generator will automatically calculate the number of students who have 0 ODR's for the month. You may also enter data for the previous two school years. This will produce a graph labeled \"The Trail of Tiers\" that shows you trends in the percentage of your students at each of the three tiers, over a three year period. If you choose \"print\", only the school name and triangle graph will print. You may also selct the cells around the graph, copy and paste to power point or word. CLICK SAVE!!!"]
["Step 3- Select the \"Print Monthly,\" \"Print Cumulative\" worksheets from the far right hand tabs at the bottom of your screen (you may have to keep clicking the tabs at the bottom of the screen until the print screens are visible, or you can click on the : in the lower left hand corner). Use your print command to print the desired graphics page. You may also select these graphs, copy, and paste to power point or word."]

{"sheet":"Main","index":1,"n_rows":6,"n_cols":10,"rows_kept":6,"cut":false,"hidden":false,"merged":[[2,1,3,10],[5,5,6,6],[4,1,4,2],[4,3,4,4],[4,5,4,6],[4,7,4,8],[4,9,4,10]]}
[]
[]
[null,"Main Menu"]
[]
[null,"Main",null,"Data Entry",null,"Triangle Pages",null,"Graphs",null,"Tables"]
[null,null,null,null,null,"Choose your school's configuration"]

{"sheet":"School Set Up","index":2,"n_rows":25,"n_cols":9,"rows_kept":25,"cut":false,"hidden":false,"merged":[[24,0,24,4],[22,0,22,4],[16,0,16,1],[14,2,14,3],[14,4,14,8],[17,2,17,6],[16,2,16,6],[16,8,16,10],[20,0,20,4]]}
[]
[]
[]
[]
[]
[]
[]
[]
[]
[]
[]
[]
[]
[]
[null,null,"School Name:",null,"Dent-Phelps R-3"]
[]
["Month/ Year:",null,"August",null,null,null,null,"/",2011]
[null,null,"Type Month or \"Cumulative\""]
[]
[]
["Number of Students Enrolled 2011/2012",null,null,null,null,283]
[]
["Number of Students Enrolled 2010/2011",null,null,null,null,306]
[]
["Number of Students Enrolled 2009/2010",null,null,null,null,297]

{"sheet":"Per Day","index":3,"n_rows":53,"n_cols":10,"rows_kept":53,"cut":false,"hidden":false,"merged":[[3,0,3,2],[9,1,9,3],[9,4,9,6],[5,0,6,9],[7,0,7,9],[4,0,4,9],[9,7,9,9]]}
[]
[]
[]
["Per Day Per Month Rate"]
["1. Enter Number of days for each month that students attend school. Include any early release as a day only if you count it as a student attendance \"day\"."]
["2. Enter total number of major referrals only for that month. Major referrals are any time a student leaves academic instruction for a disciplinary reason regardless of time spent out of the instructional setting. "]
[]
["3. A per day rate should be calculated for each month and automatically will display in the third column for each year entered. This data will also automatically be entered into two more tables and associated graphs, below. "]
[]
[null,"2009/2010",null,null,"2010/2011",null,null,"2011/2012"]
[null,"Days of Student Attendance","Major Referrals for that Month","Per Day Rate","Days of Student Attendance","Major Referrals for that Month","Per Day Rate","Days of Student Attendance","Major Referrals for that Month","Per Day Rate"]
["August",null,null,{"$f":"SUM(C12/B12)","v":{"$error":"#DIV/0!"}},null,null,{"$f":"SUM(F12/E12)","v":{"$error":"#DIV/0!"}},11,1,{"$f":"SUM(I12/H12)","v":9.0909090909090912E-2}]
["September",null,null,{"$f":"SUM(C13/B13)","v":{"$error":"#DIV/0!"}},null,null,{"$f":"SUM(F13/E13)","v":{"$error":"#DIV/0!"}},21,9,{"$f":"SUM(I13/H13)","v":0.42857142857142855}]
["October",null,null,{"$f":"SUM(C14/B14)","v":{"$error":"#DIV/0!"}},null,null,{"$error":"#DIV/0!"},19,20,1.0526315789473684]
["November",null,null,{"$error":"#DIV/0!"},null,null,{"$error":"#DIV/0!"},18,12,0.66666666666666663]
["December",null,null,{"$error":"#DIV/0!"},null,null,{"$error":"#DIV/0!"},15,12,0.8]
["January",null,null,{"$f":"SUM(C17/B17)","v":{"$error":"#DIV/0!"}},null,null,{"$error":"#DIV/0!"},21,9,0.42857142857142855]
["February",null,null,{"$error":"#DIV/0!"},null,null,{"$error":"#DIV/0!"},19,7,0.36842105263157893]
["March",null,null,{"$error":"#DIV/0!"},null,null,{"$error":"#DIV/0!"},19,8,0.42105263157894735]
["April",null,null,{"$error":"#DIV/0!"},null,null,{"$error":"#DIV/0!"},null,null,{"$error":"#DIV/0!"}]
["May",null,null,{"$error":"#DIV/0!"},null,null,{"$error":"#DIV/0!"},null,null,{"$error":"#DIV/0!"}]
["June",null,null,{"$error":"#DIV/0!"},null,null,{"$error":"#DIV/0!"},null,null,{"$error":"#DIV/0!"}]
["July",null,null,{"$error":"#DIV/0!"},null,null,{"$error":"#DIV/0!"},null,null,{"$error":"#DIV/0!"}]
[]
[null,"Per Day Rate","Per Day Rate","Per Day Rate"]
[null,"2009/2010","2010/2011","2011/2012"]
["August",{"$f":"SUM(D12)","v":{"$error":"#DIV/0!"}},{"$f":"SUM(G12)","v":{"$error":"#DIV/0!"}},{"$f":"SUM(J12)","v":9.0909090909090912E-2}]
["September",{"$f":"SUM(D13)","v":{"$error":"#DIV/0!"}},{"$f":"SUM(G13)","v":{"$error":"#DIV/0!"}},{"$f":"SUM(J13)","v":0.42857142857142855}]
["October",{"$f":"SUM(D14)","v":{"$error":"#DIV/0!"}},{"$f":"SUM(G14)","v":{"$error":"#DIV/0!"}},1.0526315789473684]
["November",{"$error":"#DIV/0!"},{"$error":"#DIV/0!"},0.66666666666666663]
["December",{"$error":"#DIV/0!"},{"$error":"#DIV/0!"},0.8]
["January",{"$error":"#DIV/0!"},{"$error":"#DIV/0!"},0.42857142857142855]
["February",{"$error":"#DIV/0!"},{"$error":"#DIV/0!"},0.36842105263157893]
["March",{"$error":"#DIV/0!"},{"$error":"#DIV/0!"},{"$f":"SUM(J19)","v":0.42105263157894735}]
["April",{"$error":"#DIV/0!"},{"$error":"#DIV/0!"},{"$error":"#DIV/0!"}]
["May",{"$error":"#DIV/0!"},{"$error":"#DIV/0!"},{"$error":"#DIV/0!"}]
["June",{"$error":"#DIV/0!"},{"$error":"#DIV/0!"},{"$error":"#DIV/0!"}]
["July",{"$error":"#DIV/0!"},{"$error":"#DIV/0!"},{"$error":"#DIV/0!"}]
[]
[null,"Per Day Rate"]
[null,"2011/2012"]
["August",{"$f":"J12","v":9.0909090909090912E-2}]
["September",{"$f":"J13","v":0.42857142857142855}]
["October",1.0526315789473684]
["November",0.66666666666666663]
["December",0.8]
["January",0.42857142857142855]
["February",0.36842105263157893]
["March",0.42105263157894735]
["April",{"$error":"#DIV/0!"}]
["May",{"$error":"#DIV/0!"}]
["June",{"$error":"#DIV/0!"}]
["July",{"$error":"#DIV/0!"}]

{"sheet":"Behavior","index":4,"n_rows":92,"n_cols":17,"rows_kept":92,"cut":false,"hidden":false,"merged":[[7,0,7,13],[3,0,3,13],[5,0,5,13],[4,0,4,13],[6,0,6,13]]}
[]
[]
[]
["Problem Behaviors"]
["1. Enter the number of major referrals for each month by behavior for each month in Table 1A [place a \"0\" if there are none]"]
["2. This will generate a cumulative yearlong table. Cumulative data will automatically propogate the fields in Table 1C, below."]
["3. Table 1B allows you to generate a graphic for just one month. After entering data into the first table, select the cells in the column that contain the data you entered for the month you wish to graph, copy (right click, \"copy\"). Then click on the first empty box in the yellow column on Table 1B, and paste (right click, \"paste\") into the yellow column. "]
["4. Table 1C is propogated when you add your data into Table 1A and Table 1B. This will generate a graph that compares the current month to the cumulative data.  "]
[]
[]
["TABLE 1A"]
[null,"August","September","October","November","December","January","February","March","April","May","June","July",{"$f":"'School Set Up'!I17","v":2011},null,null,{"$f":"N12","v":2011}]
["Inappro. Lang",0,0,1,1,3,0,0,0,0,0,0,0,{"$f":"SUM(B13:M13)","v":5},null,"Inappro. Lang",{"$f":"SUM(N13)","v":5}]
["Aggression/Fight",0,0,4,7,2,0,4,3,1,2,0,0,{"$f":"SUM(B14:M14)","v":23},null,"Aggression/Fight",{"$f":"SUM(N14)","v":23}]
["Disrespect",0,0,0,2,2,0,1,0,0,0,0,0,5,null,"Disrespect",5]
["Lying",0,0,0,0,1,0,0,0,0,0,0,0,1,null,"Lying",1]
["Harrass",0,0,1,0,2,0,1,0,0,0,0,0,4,null,"Harrass",4]
["Disruption",0,0,1,5,2,0,1,1,0,1,0,0,11,null,"Disruption",11]
["Tardy",0,0,0,0,0,0,0,0,0,0,0,0,0,null,"Tardy",0]
["Skip",0,0,0,0,0,0,0,0,0,0,0,0,0,null,"Skip",0]
["Prop Damage",0,0,1,0,0,0,1,1,0,0,0,0,3,null,"Prop Damage",3]
["Forgery/Theft",0,0,0,0,0,0,0,2,0,0,0,0,2,null,"Forgery/Theft",2]
["Dress",0,0,0,0,0,0,0,0,0,0,0,0,0,null,"Dress",0]
["Tech",0,0,0,0,0,0,0,0,0,0,0,0,0,null,"Tech",0]
["Innapro. Affect.",0,0,0,0,0,0,0,2,0,0,0,0,2,null,"Innapro. Affect.",2]
["Out Bounds",0,0,0,0,0,0,0,0,0,0,0,0,0,null,"Out Bounds",0]
["Gang Display",0,0,0,0,0,0,0,0,0,0,0,0,0,null,"Gang Display",0]
["Tobacco",0,0,0,0,0,0,0,0,0,0,0,0,0,null,"Tobacco",0]
["Alcohol",0,0,0,0,0,0,0,0,0,0,0,0,0,null,"Alcohol",0]
["Drugs",0,0,0,0,0,0,0,0,0,0,0,0,0,null,"Drugs",0]
["Combust",0,0,0,0,0,0,0,0,0,0,0,0,0,null,"Combust",0]
["Bomb",0,0,0,0,0,0,0,0,0,0,0,0,0,null,"Bomb",0]
["Arson",0,0,0,0,0,0,0,0,0,1,0,0,1,null,"Arson",1]
["Weapons",0,0,0,0,0,0,0,0,0,0,0,0,0,null,"Weapons",0]
["Other",0,0,0,0,0,0,0,0,0,1,0,0,1,null,"Other",1]
["Unknown",0,0,2,0,0,0,0,0,0,0,0,0,2,null,"Unknown",2]
[]
[{"$f":"'School Set Up'!E15","v":"Dent-Phelps R-3"}]
["TABLE 1B"]
["Inappro. Lang",1,null,null,null,null,null,null,null,null,null,null,null,{"$f":"'School Set Up'!C17","v":"August"},{"$f":"'School Set Up'!I17","v":2011}]
["Aggression/Fight",4]
["Disrespect",0]
["Lying",0,null,null,null,"."]
["Harrass",1]
["Disruption",1]
["Tardy",0]
["Skip",0]
["Prop Damage",1]
["Forgery/Theft",0]
["Dress",0]
["Tech",0]
["Innapro. Affect.",0]
["Out Bounds",0]
["Gang Display",0]
["Tobacco",0]
["Alcohol",0]
["Drugs",0]
["Combust",0]
["Bomb",0]
["Arson",0]
["Weapons",0]
["Other",0]
["Unknown",2]
[]
[]
[]
[]
["TABLE 1C","MONTH?!",{"$f":"N12","v":2011}]
["Inappro. Lang",{"$f":"B40","v":1},{"$f":"SUM(Q13)","v":5}]
["Aggression/Fight",{"$f":"B41","v":4},{"$f":"SUM(Q14)","v":23}]
["Disrespect",0,{"$f":"SUM(Q15)","v":5}]
["Lying",0,1]
["Harrass",1,4]
["Disruption",1,11]
["Tardy",0,0]
["Skip",0,0]
["Prop Damage",1,3]
["Forgery/Theft",0,2]
["Dress",0,0]
["Tech",0,0]
["Innapro. Affect.",0,2]
["Out Bounds",0,0]
["Gang Display",0,0]
["Tobacco",0,0]
["Alcohol",0,0]
["Drugs",0,0]
["Combust",0,0]
["Bomb",0,0]
["Arson",0,1]
["Weapons",0,0]
["Other",0,1]
["Unknown",2,2]

{"sheet":"Location","index":5,"n_rows":75,"n_cols":17,"rows_kept":75,"cut":false,"hidden":false,"merged":[[56,2,56,3],[11,0,11,1],[11,3,11,10],[32,0,32,1],[55,10,55,12],[11,11,11,12],[32,9,32,11],[32,12,32,13],[4,0,4,13],[3,0,3,3],[7,0,7,13],[5,0,5,13],[6,0,6,13]]}
[]
[]
[]
["Problem Locations"]
["1. Enter data totals for each month in corresponding location category, in Table 2A [place a \"0\" if there are none]"]
["2. This will generate a yearlong table."]
["3. Table 2B allows you to generate a graphic for just one month. After entering data into the  Table 2A, select the column for the month you wish to graph, then copy (right click, \"copy\"). Click on the first cell in the yellow column in Table 2B, and paste (right click, \"paste\") into the yellow column."]
["4. Table 2C generates a graph that compares the monthly referrals per location with the year to date data. Table 2C will automatically propogate itself when you enter data into Table 2A and Table 2B"]
[]
[]
[]
["Table 2A",null,null,{"$f":"'School Set Up'!C17","v":"August"},null,null,null,null,null,null,null,{"$f":"'School Set Up'!I17","v":2011}]
[null,"August","September","October","November","December","January","February","March","April","May","June","July",{"$f":"'School Set Up'!I17","v":2011},null,null,"Cumulative Level"]
["Classroom",0,0,5,5,5,3,1,1,1,2,0,0,{"$f":"SUM(B14:M14)","v":23},null,"Classroom",{"$f":"SUM(N14)","v":23}]
["Playground",0,0,1,3,1,1,1,4,0,3,0,0,{"$f":"SUM(B15:M15)","v":14},null,"Playground",{"$f":"SUM(N15)","v":14}]
["Commons",0,0,0,0,0,0,0,0,0,0,0,0,0,null,"Commons",0]
["Hall/Breezeway",0,0,0,3,2,1,0,1,0,0,0,0,7,null,"Hall/Breezeway",7]
["Cafeteria",0,0,0,0,0,0,2,0,0,0,0,0,2,null,"Cafeteria",2]
["Bath/Restroom",0,0,0,0,0,0,1,0,0,0,0,0,1,null,"Bath/Restroom",1]
["Gym",0,0,0,0,2,1,0,0,0,0,0,0,3,null,"Gym",3]
["Library",0,0,0,1,1,0,1,0,0,0,0,0,3,null,"Library",3]
["Bus Loading",0,0,0,0,0,0,0,0,0,0,0,0,0,null,"Bus Loading",0]
["Parking Lot",0,0,0,0,0,0,0,0,0,0,0,0,0,null,"Parking Lot",0]
["Bus",0,0,4,1,0,3,1,2,0,1,0,0,12,null,"Bus",12]
["Special Event",0,0,0,0,0,0,0,0,0,0,0,0,0,null,"Special Event",0]
["Off-Campus",0,0,0,0,0,0,0,0,0,0,0,0,0,null,"Off-Campus",0]
["Stadium",0,0,0,0,0,0,0,0,0,0,0,0,0,null,"Stadium",0]
["Office",0,0,0,0,0,0,0,0,0,0,0,0,0,null,"Office",0]
["Locker Room",0,0,0,0,0,0,0,0,0,0,0,0,0,null,"Locker Room",0]
["Other Location",0,0,0,0,1,0,0,0,0,0,0,0,1,null,"Other Location",1]
["Unknown Location",0,0,0,0,0,0,0,0,0,0,0,0,0,null,"Unknown Location",0]
[]
["Table 2B",null,null,null,null,null,null,null,null,{"$f":"D12","v":"August"},null,null,{"$f":"L12","v":2011}]
[null,{"$f":"'School Set Up'!C17","v":"August"}]
["Classroom"]
["Playground"]
["Commons"]
["Hall/Breezeway"]
["Cafeteria"]
["Bath/Restroom"]
["Gym"]
["Library"]
["Bus Loading"]
["Parking Lot"]
["Bus"]
["Special Event"]
["Off-Campus"]
["Stadium"]
["Office"]
["Locker Room"]
["Other Location"]
["Unknown Location"]
[]
[]
[]
["Table 2C",null,null,null,null,null,null,null,null,null,{"$f":"D12","v":"August"},null,null,{"$f":"L12","v":2011}]
[null,{"$f":"D12","v":"August"},{"$f":"L12","v":2011}]
["Classroom",{"$f":"B35","v":0},{"$f":"SUM(Q14)","v":23}]
["Playground",{"$f":"B36","v":0},{"$f":"SUM(Q15)","v":14}]
["Commons",0,0]
["Hall/Breezeway",0,7]
["Cafeteria",0,2]
["Bath/Restroom",0,1]
["Gym",0,3]
["Library",0,3]
["Bus Loading",0,0]
["Parking Lot",0,0]
["Bus",0,12]
["Special Event",0,0]
["Off-Campus",0,0]
["Stadium",0,0]
["Office",0,0]
["Locker Room",0,0]
["Other Location",0,1]
["Unknown Location",0,0]

{"sheet":"Time","index":6,"n_rows":139,"n_cols":17,"rows_kept":139,"cut":false,"hidden":false,"merged":[[3,0,3,3],[4,0,4,13],[7,0,7,13],[6,0,6,13],[5,0,5,13]]}
[]
[]
[]
["Problem Times"]
["1. Enter number of ODR's by time of day for each month in corresponding TIME category in Table 3A, [place a \"0\" if there are none]"]
["2. This will generate a yearlong table."]
["3. Table 3B allows you to generate a graphic for just one month. After entering data into the  first table, select the column for the month you wish to graph, and copy (right click, \"copy\"). Click in the first box in the yellow column of Table 3B and paste (right click, \"paste\") data into the yellow column."]
["4. Table 3C (bottom of page) compares the current month with cumulative data by time of day. The cells on this table automatically propogate when you enter data into Table 3A and Table 3B. SAVE!!!"]
[]
["Table 3A"]
[null,"August","September","October","November","December","January","February","March","April","May","June","July",{"$f":"'School Set Up'!I17","v":2011},null,null,{"$f":"N11","v":2011}]
["07:00:00",0,0,0,0,0,0,0,2,0,0,0,0,{"$f":"SUM(B12:M12)","v":2},null,"07:00:00",{"$f":"SUM(N12)","v":2}]
["07:15:00",0,0,0,0,0,1,0,0,0,0,0,0,{"$f":"SUM(B13:M13)","v":1},null,"07:15:00",{"$f":"SUM(N13)","v":1}]
["07:30:00",0,0,null,0,0,null,0,0,0,0,0,0,0,null,"07:30:00",0]
["07:45:00",0,0,1,0,1,0,0,0,0,0,0,0,2,null,"07:45:00",2]
["08:00:00",0,0,0,1,2,0,0,0,0,0,0,0,3,null,"08:00:00",3]
["08:15:00",0,0,0,0,0,0,0,0,0,0,0,0,0,null,"08:15:00",0]
["08:30:00",0,0,0,0,0,0,0,0,0,0,0,0,0,null,"08:30:00",0]
["08:45:00",0,0,0,0,0,0,0,0,0,0,0,0,0,null,"08:45:00",0]
["09:00:00",0,0,0,0,0,0,0,0,0,0,0,0,0,null,"09:00:00",0]
["09:15:00",0,0,0,1,0,1,0,0,0,0,0,0,2,null,"09:15:00",2]
["09:30:00",0,0,0,1,1,0,0,0,0,0,0,0,2,null,"09:30:00",2]
["09:45:00",0,0,0,0,0,0,0,0,0,0,0,0,0,null,"09:45:00",0]
["10:00:00",0,0,2,0,0,0,0,2,0,0,0,0,4,null,"10:00:00",4]
["10:15:00",0,0,0,0,1,0,0,0,0,0,0,0,1,null,"10:15:00",1]
["10:30:00",0,0,0,1,0,0,0,0,0,0,0,0,1,null,"10:30:00",1]
["10:45:00",0,0,1,0,0,0,0,0,0,0,0,0,1,null,"10:45:00",1]
["11:00:00",0,0,0,0,1,0,0,0,0,1,0,0,2,null,"11:00:00",2]
["11:15:00",0,0,0,2,0,0,0,0,0,0,0,0,2,null,"11:15:00",2]
["11:30:00",0,0,0,0,0,0,2,0,0,0,0,0,2,null,"11:30:00",2]
["11:45:00",0,0,0,0,0,1,1,1,0,0,0,0,3,null,"11:45:00",3]
["12:00:00",0,0,0,0,0,1,0,0,0,0,0,0,1,null,"12:00:00",1]
["12:15:00",0,0,1,1,1,1,0,1,0,1,0,0,6,null,"12:15:00",6]
["12:30:00",0,0,0,1,2,0,0,0,1,0,0,0,4,null,"12:30:00",4]
["12:45:00",0,0,0,0,0,0,0,0,0,0,0,0,0,null,"12:45:00",0]
["01:00:00",0,0,0,0,0,0,0,0,0,1,0,0,1,null,"01:00:00",1]
["01:15:00",0,0,0,0,2,0,1,0,0,0,0,0,3,null,"01:15:00",3]
["01:30:00",0,0,0,0,0,0,1,0,0,0,0,0,1,null,"01:30:00",1]
["01:45:00",0,0,0,1,0,0,0,0,0,0,0,0,1,null,"01:45:00",1]
["02:00:00",0,0,1,1,0,0,0,0,0,1,0,0,3,null,"02:00:00",3]
["02:15:00",0,0,0,0,0,0,0,0,0,0,0,0,0,null,"02:15:00",0]
["02:30:00",0,0,0,0,0,1,0,0,0,0,0,0,1,null,"02:30:00",1]
["02:45:00",0,0,0,1,1,0,0,1,0,0,0,0,3,null,"02:45:00",3]
["03:00:00",0,0,0,2,0,1,0,0,0,0,0,0,3,null,"03:00:00",3]
["03:15:00",0,0,1,1,0,0,0,1,0,0,0,0,3,null,"03:15:00",3]
["03:30:00",0,0,1,0,0,0,0,0,0,0,0,0,1,null,"03:30:00",1]
["03:45:00",0,0,1,0,0,0,1,0,0,0,0,0,2,null,"03:45:00",2]
["04:00:00",0,0,1,0,0,2,0,0,0,1,0,0,4,null,"04:00:00",4]
["04:15:00",0,0,0,0,0,0,0,0,0,0,0,0,0,null,"04:15:00",0]
["04:30:00",0,0,0,0,0,0,0,0,0,0,0,0,0,null,"04:30:00",0]
["04:45:00",0,0,0,0,0,0,0,0,0,0,0,0,{"$f":"SUM(B51:M51)","v":0},null,"04:45:00",0]
[]
["Table 3B"]
[null,{"$f":"'School Set Up'!I17","v":2011}]
["Location",{"$f":"'School Set Up'!C17","v":"August"}]
["07:00:00",0]
["07:15:00",0]
["07:30:00",0]
["07:45:00",0]
["08:00:00",0]
["08:15:00",0]
["08:30:00",0]
["08:45:00",0]
["09:00:00",0]
["09:15:00",0]
["09:30:00",0]
["09:45:00",0]
["10:00:00",0]
["10:15:00",0]
["10:30:00",0]
["10:45:00",0]
["11:00:00",0]
["11:15:00",0]
["11:30:00",0]
["11:45:00",0]
["12:00:00",0]
["12:15:00",0]
["12:30:00",0]
["12:45:00",0]
["01:00:00",0]
["01:15:00",0]
["01:30:00",0]
["01:45:00",0]
["02:00:00",0]
["02:15:00",0]
["02:30:00",0]
["02:45:00",0]
["03:00:00",0]
["03:15:00",0]
["03:30:00",0]
["03:45:00",0]
["04:00:00",0]
["04:15:00",0]
["04:30:00",0]
["04:45:00",0]
[]
[]
["Table 3C"]
[null,"Month?","YEAR"]
["07:00:00",{"$f":"B56","v":0},{"$f":"N12","v":2}]
["07:15:00",0,1]
["07:30:00",0,0]
["07:45:00",0,2]
["08:00:00",0,3]
["08:15:00",0,0]
["08:30:00",0,0]
["08:45:00",0,0]
["09:00:00",0,0]
["09:15:00",0,2]
["09:30:00",0,2]
["09:45:00",0,0]
["10:00:00",0,4]
["10:15:00",0,1]
["10:30:00",0,1]
["10:45:00",0,1]
["11:00:00",0,2]
["11:15:00",0,2]
["11:30:00",0,2]
["11:45:00",0,3]
["12:00:00",0,1]
["12:15:00",0,6]
["12:30:00",0,4]
["12:45:00",0,0]
["01:00:00",0,1]
["01:15:00",0,3]
["01:30:00",0,1]
["01:45:00",0,1]
["02:00:00",0,3]
["02:15:00",0,0]
["02:30:00",0,1]
["02:45:00",0,3]
["03:00:00",0,3]
["03:15:00",0,3]
["03:30:00",0,1]
["03:45:00",0,2]
["04:00:00",0,4]
["04:15:00",0,0]
["04:30:00",0,0]
["04:45:00",0,0]

{"sheet":"K-6 By Students ","index":7,"n_rows":23,"n_cols":8,"rows_kept":23,"cut":false,"hidden":false,"merged":[[15,0,15,1],[17,0,17,1],[1,0,1,6],[7,0,7,6],[8,0,8,5],[11,0,11,1],[13,0,13,1],[3,0,3,6],[2,0,2,6],[4,0,4,6],[5,0,5,6]]}
["Referrals By Students",null,"BASED on 2009-2010 SWIS Statistics"]
["1. Make certain that you have entered student enrollement on the \"School Set Up\" Worksheet for all three years."]
["2. Enter the total number of students for each pyramid category. You can only enter data in yellow squares.  "]
["     a) Enter the numbver of students with 1 referral in the yellow box of the D column for the appropriate year."]
["     b) Enter the number of students with 2-5 referrals in the yellow box of the E column for the appropriate year."]
["     c) Enter the number of students with 6 or more referrals in the yellow box of the F column for the appropriate year."]
[]
["2. Print"]
["Figuring your percentage!"]
[null,"Total Student Population in Aqua box below","Total Students with  0 Office Disciplinary Referrals into box below","Total Students with  1 Office Disciplinary Referrals into box below","Total Students with  2-5 Office Disciplinary Referrals into box below","Total Students with 6+ Office Disciplinary Referrals into box below."]
["2011/2012",{"$f":"'School Set Up'!F21","v":283},{"$f":"(B11)-SUM(D11:F11)","v":283}]
["Percentages >>>>>>>>>>>",null,{"$f":"C11/B11","v":1},{"$f":"SUM(D11/B11)","v":0},{"$f":"SUM(E11/B11)","v":0},{"$f":"SUM(F11/B11)","v":0}]
["2010/2011",{"$f":"'School Set Up'!F23","v":306},{"$f":"(B13)-SUM(D13:F13)","v":306}]
["Percentages >>>>>>>>>>>",null,{"$f":"C13/B13","v":1},{"$f":"SUM(D13/B13)","v":0},{"$f":"SUM(E13/B13)","v":0},{"$f":"SUM(F13/B13)","v":0}]
["2009/2010",{"$f":"'School Set Up'!F25","v":297},{"$f":"(B15)-SUM(D15:F15)","v":297}]
["Percentages >>>>>>>>>>>",null,{"$f":"C15/B15","v":1},{"$f":"SUM(D15/B15)","v":0},{"$f":"SUM(E15/B15)","v":0},{"$f":"SUM(F15/B15)","v":0}]
[]
["Use this generator if you are a K-6 Building ONLY!",null,null,null,null,null,null,{"$f":"'School Set Up'!E15","v":"Dent-Phelps R-3"}]
[null,null,null,null,{"$f":"'School Set Up'!E15:I15","v":"Dent-Phelps R-3"}]
[null,"National Grades K-6 for Year Average","2009/2010","2010/2011","2011/2012"]
["0-1 Referrals",90.95,{"$f":"D16+C16","v":1},{"$f":"D14+C14","v":1},{"$f":"D12+C12","v":1}]
["2-5 Referrals",6.7,{"$f":"E16","v":0},{"$f":"E14","v":0},{"$f":"E12","v":0}]
["6+ Referrals",2.35,{"$f":"F16","v":0},{"$f":"F14","v":0},{"$f":"F12","v":0}]

{"sheet":"6-9 By Students","index":8,"n_rows":23,"n_cols":9,"rows_kept":23,"cut":false,"hidden":false,"merged":[[1,0,1,6],[7,0,7,6],[8,0,8,5],[11,0,11,1],[13,0,13,1],[15,0,15,1],[17,0,17,1],[4,0,4,6],[2,0,2,6],[3,0,3,6],[5,0,5,6]]}
["Referrals By Students",null,"BASED on 2009-2010 SWIS Statistics"]
["1. Make certain that you have entered student enrollement on the \"School Set Up\" Worksheet for all three years."]
["2. Enter the total number of students for each pyramid category. You can only enter data in yellow squares.  "]
["     a) Enter the numbver of students with 1 referral in the yellow box of the D column for the appropriate year."]
["     b) Enter the number of students with 2-5 referrals in the yellow box of the E column for the appropriate year."]
["     c) Enter the number of students with 6 or more referrals in the yellow box of the F column for the appropriate year."]
[]
["2. Print"]
["Figuring your percentage!"]
[null,"Total Student Population in Aqua box below","Total Students with  0 Office Disciplinary Referrals into box below","Total Students with  1 Office Disciplinary Referrals into box below","Total Students with  2-5 Office Disciplinary Referrals into box below","Total Students with 6+ Office Disciplinary Referrals into box below."]
["2011/2012",{"$f":"'School Set Up'!F21","v":283},{"$f":"(B11)-SUM(D11:F11)","v":200.2},82.8]
["Percentages >>>>>>>>>>>",null,{"$f":"C11/B11","v":0.70742049469964663},{"$f":"SUM(D11/B11)","v":0.29257950530035337},{"$f":"SUM(E11/B11)","v":0},{"$f":"SUM(F11/B11)","v":0}]
["2010/2011",{"$f":"'School Set Up'!F23","v":306},{"$f":"(B13)-SUM(D13:F13)","v":306}]
["Percentages >>>>>>>>>>>",null,{"$f":"C13/B13","v":1},{"$f":"SUM(D13/B13)","v":0},{"$f":"SUM(E13/B13)","v":0},{"$f":"SUM(F13/B13)","v":0}]
["2009/2010",{"$f":"'School Set Up'!F25","v":297},{"$f":"(B15)-SUM(D15:F15)","v":297}]
["Percentages >>>>>>>>>>>",null,{"$f":"C15/B15","v":1},{"$f":"SUM(D15/B15)","v":0},{"$f":"SUM(E15/B15)","v":0},{"$f":"SUM(F15/B15)","v":0}]
[]
["Use this generator if you are a 6-9 Building ONLY!",null,null,null,null,null,null,null,{"$f":"'School Set Up'!E15","v":"Dent-Phelps R-3"}]
[null,null,null,null,{"$f":"'School Set Up'!E15:I15","v":"Dent-Phelps R-3"}]
[null,"National Grades 6-9 for Year Average","2009/2010","2010/2011","2011/2012"]
["0-1 Referrals",82.8,{"$f":"D16+C16","v":1},{"$f":"D14+C14","v":1},{"$f":"D12+C12","v":1}]
["2-5 Referrals",11.68,{"$f":"E16","v":0},{"$f":"E14","v":0},{"$f":"E12","v":0}]
["6+ Referrals",5.52,{"$f":"F16","v":0},{"$f":"F14","v":0},{"$f":"F12","v":0}]

{"sheet":"9-12 By Students","index":9,"n_rows":23,"n_cols":9,"rows_kept":23,"cut":false,"hidden":false,"merged":[[1,0,1,6],[7,0,7,6],[8,0,8,5],[11,0,11,1],[13,0,13,1],[15,0,15,1],[17,0,17,1],[4,0,4,6],[2,0,2,6],[3,0,3,6],[5,0,5,6]]}
["Referrals By Students",null,"BASED on 2009-2010 SWIS Statistics"]
["1. Make certain that you have entered student enrollement on the \"School Set Up\" Worksheet for all three years."]
["2. Enter the total number of students for each pyramid category. You can only enter data in yellow squares.  "]
["     a) Enter the numbver of students with 1 referral in the yellow box of the D column for the appropriate year."]
["     b) Enter the number of students with 2-5 referrals in the yellow box of the E column for the appropriate year."]
["     c) Enter the number of students with 6 or more referrals in the yellow box of the F column for the appropriate year."]
[]
["2. Print"]
["Figuring your percentage!"]
[null,"Total Student Population in Aqua box below","Total Students with  0 Office Disciplinary Referrals into box below","Total Students with  1 Office Disciplinary Referrals into box below","Total Students with  2-5 Office Disciplinary Referrals into box below","Total Students with 6+ Office Disciplinary Referrals into box below."]
["2011/2012",{"$f":"'School Set Up'!F21","v":283},{"$f":"(B11)-SUM(D11:F11)","v":283}]
["Percentages >>>>>>>>>>>",null,{"$f":"C11/B11","v":1},{"$f":"SUM(D11/B11)","v":0},{"$f":"SUM(E11/B11)","v":0},{"$f":"SUM(F11/B11)","v":0}]
["2010/2011",{"$f":"'School Set Up'!F23","v":306},{"$f":"(B13)-SUM(D13:F13)","v":306}]
["Percentages >>>>>>>>>>>",null,{"$f":"C13/B13","v":1},{"$f":"SUM(D13/B13)","v":0},{"$f":"SUM(E13/B13)","v":0},{"$f":"SUM(F13/B13)","v":0}]
["2009/2010",{"$f":"'School Set Up'!F25","v":297},{"$f":"(B15)-SUM(D15:F15)","v":297}]
["Percentages >>>>>>>>>>>",null,{"$f":"C15/B15","v":1},{"$f":"SUM(D15/B15)","v":0},{"$f":"SUM(E15/B15)","v":0},{"$f":"SUM(F15/B15)","v":0}]
[]
["Use this generator if you are a 9-12 Building ONLY!",null,null,null,null,null,null,null,{"$f":"'School Set Up'!E15","v":"Dent-Phelps R-3"}]
[null,null,null,null,{"$f":"'School Set Up'!E15:I15","v":"Dent-Phelps R-3"}]
[null,"National Grades 9-12 for Year Average","2009/2010","2010/2011","2011/2012"]
["0-1 Referrals",77.8,{"$f":"D16+C16","v":1},{"$f":"D14+C14","v":1},{"$f":"D12+C12","v":1}]
["2-5 Referrals",14.67,{"$f":"E16","v":0},{"$f":"E14","v":0},{"$f":"E12","v":0}]
["6+ Referrals",7.53,{"$f":"F16","v":0},{"$f":"F14","v":0},{"$f":"F12","v":0}]

{"sheet":"K8 or K12 By Students","index":10,"n_rows":23,"n_cols":9,"rows_kept":23,"cut":false,"hidden":false,"merged":[[1,0,1,6],[7,0,7,6],[8,0,8,5],[11,0,11,1],[13,0,13,1],[15,0,15,1],[17,0,17,1],[4,0,4,6],[2,0,2,6],[3,0,3,6],[5,0,5,6]]}
["Referrals By Students",null,"BASED on 2009-2010 SWIS Statistics"]
["1. Make certain that you have entered student enrollement on the \"School Set Up\" Worksheet for all three years."]
["2. Enter the total number of students for each pyramid category. You can only enter data in yellow squares.  "]
["     a) Enter the numbver of students with 1 referral in the yellow box of the D column for the appropriate year."]
["     b) Enter the number of students with 2-5 referrals in the yellow box of the E column for the appropriate year."]
["     c) Enter the number of students with 6 or more referrals in the yellow box of the F column for the appropriate year."]
[]
["2. Print"]
["Figuring your percentage!"]
[null,"Total Student Population in Aqua box below","Total Students with  0 Office Disciplinary Referrals into box below","Total Students with  1 Office Disciplinary Referrals into box below","Total Students with  2-5 Office Disciplinary Referrals into box below","Total Students with 6+ Office Disciplinary Referrals into box below."]
["2011/2012",{"$f":"'School Set Up'!F21","v":283},{"$f":"(B11)-SUM(D11:F11)","v":283}]
["Percentages >>>>>>>>>>>",null,{"$f":"C11/B11","v":1},{"$f":"SUM(D11/B11)","v":0},{"$f":"SUM(E11/B11)","v":0},{"$f":"SUM(F11/B11)","v":0}]
["2010/2011",{"$f":"'School Set Up'!F23","v":306},{"$f":"(B13)-SUM(D13:F13)","v":306}]
["Percentages >>>>>>>>>>>",null,{"$f":"C13/B13","v":1},{"$f":"SUM(D13/B13)","v":0},{"$f":"SUM(E13/B13)","v":0},{"$f":"SUM(F13/B13)","v":0}]
["2009/2010",{"$f":"'School Set Up'!F25","v":297},{"$f":"(B15)-SUM(D15:F15)","v":297}]
["Percentages >>>>>>>>>>>",null,{"$f":"C15/B15","v":1},{"$f":"SUM(D15/B15)","v":0},{"$f":"SUM(E15/B15)","v":0},{"$f":"SUM(F15/B15)","v":0}]
[]
["Use this generator if you are a K-8 or K-12 Building ONLY!",null,null,null,null,null,null,null,{"$f":"'School Set Up'!E15","v":"Dent-Phelps R-3"}]
[null,null,null,null,{"$f":"'School Set Up'!E15:I15","v":"Dent-Phelps R-3"}]
[null,"National Grades K-8 or K-12 for Year Average","2009/2010","2010/2011","2011/2012"]
["0-1 Referrals",86.24,{"$f":"D16+C16","v":1},{"$f":"D14+C14","v":1},{"$f":"D12+C12","v":1}]
["2-5 Referrals",9.59,{"$f":"E16","v":0},{"$f":"E14","v":0},{"$f":"E12","v":0}]
["6+ Referrals",4.17,{"$f":"F16","v":0},{"$f":"F14","v":0},{"$f":"F12","v":0}]

{"sheet":"By Students No Comparison","index":11,"n_rows":23,"n_cols":8,"rows_kept":23,"cut":false,"hidden":false,"merged":[[1,0,1,6],[7,0,7,6],[8,0,8,5],[11,0,11,1],[13,0,13,1],[15,0,15,1],[17,0,17,1],[4,0,4,6],[2,0,2,6],[3,0,3,6],[5,0,5,6]]}
["Referrals By Students"]
["1. Make certain that you have entered student enrollement on the \"School Set Up\" Worksheet for all three years."]
["2. Enter the total number of students for each pyramid category. You can only enter data in yellow squares.  "]
["     a) Enter the numbver of students with 1 referral in the yellow box of the D column for the appropriate year."]
["     b) Enter the number of students with 2-5 referrals in the yellow box of the E column for the appropriate year."]
["     c) Enter the number of students with 6 or more referrals in the yellow box of the F column for the appropriate year."]
[]
["2. Print"]
["Figuring your percentage!"]
[null,"Total Student Population in Aqua box below","Total Students with  0 Office Disciplinary Referrals into box below","Total Students with  1 Office Disciplinary Referrals into box below","Total Students with  2-5 Office Disciplinary Referrals into box below","Total Students with 6+ Office Disciplinary Referrals into box below."]
["2011/2012",{"$f":"'School Set Up'!F21","v":283},{"$f":"(B11)-SUM(D11:F11)","v":123},100,50,10]
["Percentages >>>>>>>>>>>",null,{"$f":"C11/B11","v":0.43462897526501765},{"$f":"SUM(D11/B11)","v":0.35335689045936397},{"$f":"SUM(E11/B11)","v":0.17667844522968199},{"$f":"SUM(F11/B11)","v":3.5335689045936397E-2}]
["2010/2011",{"$f":"'School Set Up'!F23","v":306},{"$f":"(B13)-SUM(D13:F13)","v":306}]
["Percentages >>>>>>>>>>>",null,{"$f":"C13/B13","v":1},{"$f":"SUM(D13/B13)","v":0},{"$f":"SUM(E13/B13)","v":0},{"$f":"SUM(F13/B13)","v":0}]
["2009/2010",{"$f":"'School Set Up'!F25","v":297},{"$f":"(B15)-SUM(D15:F15)","v":297}]
["Percentages >>>>>>>>>>>",null,{"$f":"C15/B15","v":1},{"$f":"SUM(D15/B15)","v":0},{"$f":"SUM(E15/B15)","v":0},{"$f":"SUM(F15/B15)","v":0}]
[]
[null,null,null,null,null,null,null,{"$f":"'School Set Up'!E15","v":"Dent-Phelps R-3"}]
[null,null,null,{"$f":"'School Set Up'!E15","v":"Dent-Phelps R-3"}]
[null,"2009/2010","2010/2011","2011/2012"]
["0-1 Referrals",{"$f":"C16+B16","v":1},{"$f":"C14+B14","v":1},{"$f":"C12+B12","v":0.43462897526501765}]
["2-5 Referrals",{"$f":"D16","v":0},{"$f":"D14","v":0},{"$f":"D12","v":0.35335689045936397}]
["6+ Referrals",{"$f":"E16","v":0},{"$f":"E14","v":0},{"$f":"F12","v":3.5335689045936397E-2}]

{"sheet":"perday Generator","index":12,"n_rows":35,"n_cols":4,"rows_kept":35,"cut":false,"hidden":false,"merged":[[1,0,1,1],[25,0,25,4],[2,0,2,3],[4,0,4,1],[7,0,7,4],[16,0,16,1],[19,0,19,4],[21,0,21,1],[20,0,20,1],[8,0,8,1],[9,0,9,1],[10,0,10,1],[13,0,13,4],[22,0,22,1],[14,0,14,1],[15,0,15,1],[34,0,34,1],[27,0,27,1],[28,0,28,1],[26,0,26,1],[32,0,32,1],[31,0,31,4],[33,0,33,1]]}
[]
["Based on 2010-2011 SWIS Statistics",null,"SCHOOL: ",{"$f":"'School Set Up'!$E$15","v":"Dent-Phelps R-3"}]
["Entering your total number of students in the yellow box will allow you to generate a PER DAY PER MONTH MEDIAN <50th percentile>                            for MAJOR Office Discipline Referrals."]
[]
["Total student population on official count day for current school year",null,null,{"$f":"'School Set Up'!F21","v":283}]
["Your student population divided by 100",null,null,{"$f":"SUM(D5/100)","v":2.83}]
[]
["Median for Elementary Schools is .21 referrals per 100 students "]
["Elementary Low End of Range (25th percentile)",null,0.11,{"$f":"SUM($D$6*C9)","v":0.31130000000000002}]
["Elementary Median",null,0.21,{"$f":"SUM($D$6*C10)","v":0.59429999999999994}]
["Elemenary High End of Range (75th Percentile)",null,0.39,1.1037000000000001]
[]
[]
["Median for Middle Schools is .46 referrals (SD = 1.11)  per 100 students  "]
["Middle School Low End of Range (25th Percentile)",null,0.25,{"$f":"SUM($D$6*C15)","v":0.70750000000000002}]
["Middle School Median",null,0.46,1.3018000000000001]
["Middle School High End of Range (75th Percentile)",null,0.79,2.2357]
[]
[]
["Median for High Schools is .62 referrals (SD = 2.60)  per 100 students  "]
["High School Low End of Range (25th Percentile)",null,0.34,{"$f":"SUM($D$6*C21)","v":0.96220000000000006}]
["High School Median",null,0.62,1.7545999999999999]
["High School High End of Range (75th Percentile)",null,1.07,3.0281000000000002]
[]
[]
["Median for K-8 is .32 referrals (SD = 2.60) per 100 students "]
["K-8 or K-12 Low End of Range (25th Percentile)",null,0.18,{"$f":"SUM($D$6*C27)","v":0.50939999999999996}]
["K-8 or K-12 Median",null,0.32,0.90560000000000007]
["K-8 or K-12 High End of Range (75th Percentile)",null,0.65,1.8395000000000001]
[]
[]
["Median for K-12 is .42 referrals (SD = 2.60) per 100 students "]
["K-8 or K-12 Low End of Range (25th Percentile)",null,0.18,{"$f":"SUM($D$6*C33)","v":0.50939999999999996}]
["K-8 or K-12 Median",null,0.37,1.0470999999999999]
["K-8 or K-12 High End of Range (Percentile)",null,0.71,2.0093000000000001]

{"sheet":"Print Monthly","index":13,"n_rows":7,"n_cols":9,"rows_kept":7,"cut":false,"hidden":false,"merged":[[0,6,1,8],[6,5,7,7],[3,4,4,10],[6,8,7,9]]}
[null,null,null,null,null,null,"Per Month"]
[]
[]
[null,null,null,null,{"$f":"'School Set Up'!E15:I15","v":"Dent-Phelps R-3"}]
[]
[]
[null,null,null,null,null,{"$f":"'School Set Up'!C17","v":"August"},null,null,{"$f":"'School Set Up'!I17","v":2011}]

{"sheet":"Print Cumulative","index":14,"n_rows":6,"n_cols":9,"rows_kept":6,"cut":false,"hidden":false,"merged":[[2,4,3,10],[5,5,6,7],[0,6,1,8],[5,8,6,9]]}
[null,null,null,null,null,null,"Cumulative Data"]
[]
[null,null,null,null,{"$f":"'School Set Up'!E15","v":"Dent-Phelps R-3"}]
[]
[]
[null,null,null,null,null,{"$f":"'School Set Up'!C17","v":"August"},null,null,{"$f":"'School Set Up'!I17","v":2011}]